[Event "FIDE WSTC Open 65 2025"]
[Site "Prague"]
[Date "2025.02.21"]
[Round "5.31"]
[White "Baimurzin, Aitkazy"]
[Black "Moen, Ole Christian"]
[Result "0-1"]
[Annotator "RC"]
[ECO "A21"]
[WhiteElo "1997"]
[BlackElo "2201"]
[PlyCount "136"]
[EventDate "2025.02.17"]
[EventType "team-tourn"]
[EventCountry "CZE"]
[SourceTitle "playchess.com"]
[Source "ChessBase"]
[SourceQuality "1"]
[TimeControl "40/5400+30:1800+30"]

1. c4 {[%emt 0:00:13]} e5 {[%emt 0:00:25]} 2. g3 {[%emt 0:00:28]} d6 {[%emt 0:00:25]} 3. Nc3 {[%emt 0:00:28]} Nd7 {[%emt 0:00:53]} 4. Bg2 {[%emt 0:00:18]} g6 {[%emt 0:00:05]} 5. e3 {[%emt 0:03:41]} Bg7 {[%emt 0:01:31]} 6. Nge2 {[%emt 0:00:42]} h5 {[%emt 0:01:47]} 7. h4 {[%emt 0:07:24]} Ngf6 {[%emt 0:01:49]} 8. d3 {[%emt 0:03:05]} O-O {[%emt 0:00:28]} 9. b3 {[%emt 0:04:25]} a5 {[%emt 0:02:53]} 10. Bb2 {[%emt 0:01:06]} Re8 {[%emt 0:00:13]} 11. O-O {[%emt 0:03:10]} Nc5 {[%emt 0:03:28]} 12. Qd2 {[%emt 0:03:33]} c6 {[%emt 0:11:41]} 13. Rad1 {[%emt 0:04:36]} Bg4 {[%emt 0:02:16]} 14. f3 {[%emt 0:09:36]} Bf5 {[%emt 0:21:24]} 15. e4 {[%emt 0:06:15]} Bd7 {[%emt 0:05:05]} 16. Kh2 {[%emt 0:11:50]} Ne6 {[%emt 0:01:53]} 17. Nb1 {[%emt 0:03:51]} c5 {[%emt 0:09:08]} 18. Nbc3 {[%emt 0:04:17]} Nd4 {[%emt 0:00:55]} 19. Nxd4 {[%emt 0:04:52]} exd4 {[%emt 0:01:41]} 20. Ne2 {[%emt 0:00:26]} b5 {[%emt 0:01:14]} 21. Qc2 {[%emt 0:07:44]} Rb8 {[%emt 0:01:35]} 22. Bc1 {[%emt 0:02:31]} bxc4 {[%emt 0:00:36]} 23. dxc4 {[%emt 0:01:02]} a4 {[%emt 0:01:19]} 24. Bf4 {[%emt 0:01:11]} axb3 {[%emt 0:01:12]} 25. axb3 {[%emt 0:00:10]} Qb6 {[%emt 0:00:06]} 26. Rb1 {[%emt 0:00:25]} Rb7 {[%emt 0:02:09]} 27. Rfd1 {[%emt 0:04:58]} Be6 {[%emt 0:01:34]} 28. Nc1 {[%emt 0:01:32]} Nd7 {[%emt 0:02:14]} 29. Nd3 {[%emt 0:00:25]} Be5 {[%emt 0:02:35]} 30. Bd2 {[%emt 0:01:59]} Bg7 {[%emt 0:03:58]} 31. Bf4 {[%emt 0:01:19]} Qc6 {[%emt 0:02:02]} 32. Re1 {[%emt 0:03:08]} Ne5 {[%emt 0:02:47]} 33. Bxe5 {[%emt 0:01:58]} dxe5 {[%emt 0:00:22]} 34. f4 {[%emt 0:01:01]} Qc7 {[%emt 0:01:59]} 35. Qf2 {[%emt 0:00:48]} Reb8 {[%emt 0:00:50]} 36. Qc2 {[%emt 0:00:58]} Ra7 {[%emt 0:03:56]} 37. Rf1 {[%emt 0:00:38]} exf4 {[%emt 0:01:26]} 38. gxf4 {[%emt 0:00:24]} Bf6 {[%emt 0:00:44]} 39. Kg3 {[%emt 0:00:36]} Qe7 {[%emt 0:00:32]} 40. Rh1 {[%emt 0:00:25]} Ra3 {[%emt 0:00:55]} 41. e5 {[%emt 0:07:06]} Bf5 {[%emt 0:01:10]} 42. Rb2 {[%emt 0:05:57]} Bg7 {[%emt 0:01:06]} 43. Re1 {[%emt 0:03:31]} Bh6 {[%emt 0:01:34]} 44. Be4 {[%emt 0:00:50]} Bxe4 {[%emt 0:08:43]} 45. Rxe4 {[%emt 0:00:05]} Qb7 {[%emt 0:01:00]} 46. Nc1 {[%emt 0:02:59]} Ra1 {[%emt 0:02:45]} 47. Rb1 {[%emt 0:02:02]} Ra6 {[%emt 0:05:23]} 48. Re1 {[%emt 0:02:21]} Qd7 {[%emt 0:00:45]} 49. Qd1 {[%emt 0:02:55]} Qf5 {[%emt 0:00:34]} 50. Nd3 {[%emt 0:01:03]} Ra2 {[%emt 0:00:44]} 51. e6 {[%emt 0:04:05]} fxe6 {[%emt 0:00:12]} 52. Rf1 {[%emt 0:01:39]} Bf8 {[%emt 0:05:06]} 53. Qf3 {[%emt 0:00:48]} Bd6 {[%emt 0:00:06]} 54. Nf2 {[%emt 0:00:36]} Re2 {[%emt 0:01:25]} 55. Rfe1 {[%emt 0:00:57]} Rxe1 {[%emt 0:04:55]} 56. Rxe1 {[%emt 0:00:02]} Bxf4+ {[%emt 0:00:18]} 57. Kg2 {[%emt 0:01:43]} Be3 {[%emt 0:00:51]} 58. Ne4 {[%emt 0:00:25]} Rxb3 {[%emt 0:01:46]} 59. Qxf5 {[%emt 0:00:45]} gxf5 {[%emt 0:00:13]} 60. Nxc5 {[%emt 0:00:05]} Rb2+ {[%emt 0:00:09]} 61. Kf3 {[%emt 0:01:09]} e5 {[%emt 0:00:38]} 62. Ra1 {[%emt 0:00:27]} e4+ {[%emt 0:01:32]} 63. Kg3 {[%emt 0:00:03]} d3 {[%emt 0:00:30]} 64. Ne6 {[%emt 0:01:44]} Kf7 {[%emt 0:01:48]} 65. Nd8+ {[%emt 0:00:26]} Kf6 {[%emt 0:00:41]} 66. Ra6+ {[%emt 0:01:01]} Rb6 {[%emt 0:00:59]} 67. Ra7 {[%emt 0:00:03]} Rd6 {[%emt 0:01:21]} 68. Rf7+ {[%emt 0:00:48]} Kg6 {[%emt 0:00:07]} 0-1

[Event "FIDE WSTC Open 65 2025"]
[Site "Prague"]
[Date "2025.02.21"]
[Round "5.32"]
[White "Bjerke, Richard"]
[Black "Blokhin, Alexey"]
[Result "1/2-1/2"]
[Annotator "NA"]
[ECO "A43"]
[WhiteElo "2037"]
[BlackElo "1829"]
[PlyCount "62"]
[EventDate "2025.02.17"]
[EventType "team-tourn"]
[EventCountry "CZE"]
[SourceTitle "playchess.com"]
[Source "ChessBase"]
[SourceQuality "1"]
[TimeControl "40/5400+30:1800+30"]

1. d4 {[%emt 0:00:05]} c5 {[%emt 0:00:07]} 2. Nf3 {[%emt 0:00:34]} cxd4 {[%emt 0:01:34]} 3. Nxd4 {[%emt 0:00:26]} d5 {[%emt 0:00:41]} 4. g3 {[%emt 0:00:24]} e5 {[%emt 0:03:35]} 5. Nb3 {[%emt 0:00:12]} Nc6 {[%emt 0:01:07]} 6. Bg2 {[%emt 0:00:39]} Be6 {[%emt 0:00:50]} 7. O-O {[%emt 0:01:04]} f5 {[%emt 0:01:53]} 8. c3 {[%emt 0:03:16]} Nf6 {[%emt 0:01:38]} 9. Bg5 {[%emt 0:06:39]} a5 {[%emt 0:09:39]} 10. a4 {[%emt 0:02:08]} e4 {[%emt 0:03:09]} 11. Na3 {[%emt 0:04:04]} Bxa3 {[%emt 0:00:55]} 12. Rxa3 {[%emt 0:00:12]} O-O {[%emt 0:00:08]} 13. Nc5 {[%emt 0:10:37]} Qe7 {[%emt 0:06:20]} 14. Nxe6 {[%emt 0:01:49]} Qxe6 {[%emt 0:00:05]} 15. Rb3 {[%emt 0:01:05]} d4 {[%emt 0:10:08]} 16. Rxb7 {[%emt 0:11:04]} h6 {[%emt 0:07:08]} 17. Bxf6 {[%emt 0:01:39]} Qxf6 {[%emt 0:00:12]} 18. f3 {[%emt 0:15:38]} dxc3 {[%emt 0:10:06]} 19. Qb3+ {[%emt 0:00:45]} Kh8 {[%emt 0:01:00]} 20. bxc3 {[%emt 0:00:25]} exf3 {[%emt 0:08:58]} 21. Bxf3 {[%emt 0:01:40]} Ne5 {[%emt 0:00:27]} 22. Rb6 {[%emt 0:02:14]} Nxf3+ {[%emt 0:01:31]} 23. exf3 {[%emt 0:01:27]} Qe5 {[%emt 0:00:24]} 24. Re6 {[%emt 0:06:50]} Qc5+ {[%emt 0:00:47]} 25. Kg2 {[%emt 0:03:40]} Rab8 {[%emt 0:02:33]} 26. Qc2 {[%emt 0:02:45]} Qa3 {[%emt 0:04:30]} 27. Rf2 {[%emt 0:04:01]} Rb3 {[%emt 0:01:39]} 28. Qd2 {[%emt 0:01:56]} Rxc3 {[%emt 0:03:33]} 29. Rxh6+ {[%emt 0:01:57]} gxh6 {[%emt 0:00:02]} 30. Qxh6+ {[%emt 0:00:11]} Kg8 {[%emt 0:00:10]} 31. Qg6+ {[%emt 0:00:11]} Kh8 1/2-1/2

[Event "FIDE WSTC Open 65 2025"]
[Site "Prague"]
[Date "2025.02.21"]
[Round "5.33"]
[White "Chubar, Vladimir"]
[Black "Kiss, Attila"]
[Result "0-1"]
[Annotator "RC"]
[ECO "D11"]
[WhiteElo "1885"]
[BlackElo "2276"]
[PlyCount "102"]
[EventDate "2025.02.17"]
[EventType "team-tourn"]
[EventCountry "CZE"]
[SourceTitle "playchess.com"]
[Source "ChessBase"]
[SourceQuality "1"]
[TimeControl "40/5400+30:1800+30"]

1. d4 {[%emt 0:02:26]} d5 {[%emt 0:00:24]} 2. Nf3 {[%emt 0:00:20]} Nf6 {[%emt 0:00:30]} 3. g3 {[%emt 0:00:36]} c6 {[%emt 0:01:35]} 4. Bg2 {[%emt 0:00:30]} Bf5 {[%emt 0:02:31]} 5. O-O {[%emt 0:01:02]} e6 {[%emt 0:02:08]} 6. b3 {[%emt 0:06:22]} Nbd7 {[%emt 0:01:53]} 7. c4 {[%emt 0:00:57]} Be7 {[%emt 0:00:54]} 8. Nbd2 {[%emt 0:02:36]} O-O {[%emt 0:04:26]} 9. Bb2 {[%emt 0:01:03]} a5 {[%emt 0:04:08]} 10. a3 {[%emt 0:05:03]} h6 {[%emt 0:05:38]} 11. Re1 {[%emt 0:05:38]} Qc7 {[%emt 0:02:38]} 12. Rc1 {[%emt 0:04:08]} Rfd8 {[%emt 0:06:43]} 13. cxd5 {[%emt 0:08:01]} exd5 {[%emt 0:02:10]} 14. Nh4 {[%emt 0:01:27]} Bh7 {[%emt 0:01:19]} 15. Bh3 {[%emt 0:01:45]} Re8 {[%emt 0:05:22]} 16. Bf5 {[%emt 0:03:18]} Bxf5 {[%emt 0:00:46]} 17. Nxf5 {[%emt 0:00:10]} Bf8 {[%emt 0:00:04]} 18. Qc2 {[%emt 0:03:43]} Re6 {[%emt 0:02:18]} 19. e4 {[%emt 0:01:47]} dxe4 {[%emt 0:13:08]} 20. Nxe4 {[%emt 0:00:52]} Rae8 {[%emt 0:01:17]} 21. Nxf6+ {[%emt 0:01:07]} Nxf6 {[%emt 0:00:11]} 22. Rxe6 {[%emt 0:00:32]} Rxe6 {[%emt 0:00:02]} 23. Ne3 {[%emt 0:02:14]} Qd8 {[%emt 0:02:11]} 24. Qf5 {[%emt 0:02:53]} g6 {[%emt 0:01:16]} 25. Qf3 {[%emt 0:01:08]} Bg7 {[%emt 0:02:29]} 26. Rd1 {[%emt 0:04:01]} Rd6 {[%emt 0:02:46]} 27. Nc4 {[%emt 0:05:47]} Rd5 {[%emt 0:00:50]} 28. a4 {[%emt 0:01:10]} h5 {[%emt 0:04:08]} 29. Bc3 {[%emt 0:02:04]} Ng4 {[%emt 0:04:38]} 30. h3 {[%emt 0:02:27]} Rf5 {[%emt 0:05:00]} 31. Qxf5 {[%emt 0:03:43]} gxf5 {[%emt 0:00:11]} 32. hxg4 {[%emt 0:00:03]} fxg4 {[%emt 0:00:41]} 33. Bxa5 {[%emt 0:00:37]} Qd5 {[%emt 0:00:11]} 34. Bb6 {[%emt 0:01:32]} Qf3 {[%emt 0:04:51]} 35. Rb1 {[%emt 0:07:18]} h4 {[%emt 0:03:35]} 36. gxh4 {[%emt 0:04:26]} g3 {[%emt 0:00:18]} 37. Rb2 {[%emt 0:05:30]} gxf2+ {[%emt 0:01:49]} 38. Kf1 {[%emt 0:02:42]} Bh6 {[%emt 0:03:26]} 39. a5 {[%emt 0:05:30]} f6 {[%emt 0:05:39]} 40. Rxf2 {[%emt 0:02:21]} Qxb3 {[%emt 0:00:39]} 41. Nb2 {[%emt 0:30:55]} Bc1 {[%emt 0:30:46]} 42. Rxf6 {[%emt 0:00:00]} Bxb2 {[%emt 0:00:00]} 43. Rf2 {[%emt 0:00:00]} Qd3+ {[%emt 0:00:00]} 44. Kg2 {[%emt 0:00:00]} Bxd4 {[%emt 0:00:00]} 45. Bxd4 {[%emt 0:00:00]} Qxd4 {[%emt 0:00:00]} 46. a6 {[%emt 0:00:00]} Qg4+ {[%emt 0:00:00]} 47. Kf1 {[%emt 0:00:16]} Qc4+ {[%emt 0:00:00]} 48. Kg2 {[%emt 0:02:38]} Qxa6 {[%emt 0:00:00]} 49. Kg3 {[%emt 0:01:16]} c5 {[%emt 0:00:00]} 50. Rf5 {[%emt 0:00:18]} c4 {[%emt 0:00:00]} 51. Kf4 {[%emt 0:00:34]} c3 {[%emt 0:00:00]} 0-1

[Event "FIDE WSTC Open 65 2025"]
[Site "Prague"]
[Date "2025.02.21"]
[Round "5.34"]
[White "Nemeth, Zoltan"]
[Black "Dovzhenko, Viktor"]
[Result "1-0"]
[Annotator "RC"]
[ECO "A53"]
[WhiteElo "2192"]
[BlackElo "2058"]
[PlyCount "215"]
[EventDate "2025.02.17"]
[EventType "team-tourn"]
[EventCountry "CZE"]
[SourceTitle "playchess.com"]
[Source "ChessBase"]
[SourceQuality "1"]
[TimeControl "40/5400+30:1800+30"]

1. Nf3 {[%emt 0:00:02]} d6 {[%emt 0:04:23]} 2. d4 {[%emt 0:00:50]} Bg4 {[%emt 0:00:15]} 3. g3 {[%emt 0:00:12]} c6 {[%emt 0:00:58]} 4. Bg2 {[%emt 0:00:14]} Nd7 {[%emt 0:01:31]} 5. h3 {[%emt 0:03:28]} Bh5 {[%emt 0:00:37]} 6. c4 {[%emt 0:03:10]} e5 {[%emt 0:01:29]} 7. Nc3 {[%emt 0:00:15]} Be7 {[%emt 0:00:44]} 8. O-O {[%emt 0:00:58]} Ngf6 {[%emt 0:01:34]} 9. e4 {[%emt 0:08:31]} O-O {[%emt 0:00:28]} 10. Be3 {[%emt 0:04:01]} Re8 {[%emt 0:01:58]} 11. g4 {[%emt 0:01:21]} Bg6 {[%emt 0:00:28]} 12. Nh4 {[%emt 0:01:43]} a6 {[%emt 0:02:48]} 13. f4 {[%emt 0:26:24]} exf4 {[%emt 0:03:09]} 14. Bxf4 {[%emt 0:01:28]} b5 {[%emt 0:07:39]} 15. e5 {[%emt 0:01:35]} dxe5 {[%emt 0:00:34]} 16. dxe5 {[%emt 0:02:49]} Nxg4 {[%emt 0:31:41]} 17. Nxg6 {[%emt 0:02:53]} Bc5+ {[%emt 0:00:11]} 18. Kh1 {[%emt 0:00:24]} Nf2+ {[%emt 0:00:32]} 19. Rxf2 {[%emt 0:00:05]} Bxf2 {[%emt 0:00:12]} 20. Bxc6 {[%emt 0:02:13]} Ra7 {[%emt 0:05:20]} 21. Ne4 {[%emt 0:08:21]} hxg6 {[%emt 0:05:10]} 22. Nxf2 {[%emt 0:00:29]} Qb6 {[%emt 0:00:10]} 23. Bxd7 {[%emt 0:10:06]} Qb7+ {[%emt 0:10:46]} 24. Kg1 {[%emt 0:08:30]} Qxd7 {[%emt 0:00:32]} 25. Qxd7 Rxd7 {[%emt 0:00:01]} 26. cxb5 {[%emt 0:01:58]} axb5 {[%emt 0:00:13]} 27. Rd1 {[%emt 0:02:56]} Rxd1+ {[%emt 0:03:22]} 28. Nxd1 {[%emt 0:00:06]} g5 {[%emt 0:00:07]} 29. Bxg5 {[%emt 0:02:04]} Rxe5 {[%emt 0:00:14]} 30. Be3 {[%emt 0:00:06]} b4 {[%emt 0:00:39]} 31. Kf1 {[%emt 0:01:02]} f5 {[%emt 0:01:47]} 32. Bd2 {[%emt 0:01:18]} Re4 {[%emt 0:01:13]} 33. Nf2 {[%emt 0:00:35]} Rh4 {[%emt 0:04:56]} 34. b3 {[%emt 0:02:43]} Kf7 {[%emt 0:00:16]} 35. Bg5 {[%emt 0:01:53]} Rh8 {[%emt 0:01:58]} 36. Bd2 {[%emt 0:00:57]} Rh4 {[%emt 0:00:35]} 37. Kg2 {[%emt 0:00:50]} Rd4 {[%emt 0:00:53]} 38. Be3 {[%emt 0:00:45]} Rd5 {[%emt 0:00:28]} 39. Kf3 {[%emt 0:01:39]} Ra5 {[%emt 0:00:19]} 40. Nd3 {[%emt 0:00:53]} Rxa2 {[%emt 0:00:29]} 41. Nxb4 {[%emt 0:30:12]} Rb2 {[%emt 0:30:05]} 42. Nc6 {[%emt 0:00:05]} Rxb3 {[%emt 0:00:55]} 43. Nd4 {[%emt 0:00:05]} Ra3 {[%emt 0:00:25]} 44. Nxf5 {[%emt 0:00:04]} Kf6 {[%emt 0:00:49]} 45. Kg4 {[%emt 0:00:00]} g6 {[%emt 0:00:00]} 46. Bd4+ {[%emt 0:00:00]} Ke6 {[%emt 0:00:00]} 47. Nh4 {[%emt 0:00:00]} Ra4 {[%emt 0:00:00]} 48. Nf3 {[%emt 0:00:00]} Kd5 {[%emt 0:00:00]} 49. Kf4 {[%emt 0:00:00]} Rc4 {[%emt 0:00:00]} 50. Kg5 {[%emt 0:00:00]} Ra4 {[%emt 0:00:00]} 51. Bf6 {[%emt 0:00:00]} Ra3 {[%emt 0:00:00]} 52. Kg4 {[%emt 0:00:00]} Ke6 {[%emt 0:00:00]} 53. Bd4 {[%emt 0:00:00]} Ra4 {[%emt 0:00:00]} 54. Kf4 {[%emt 0:00:00]} Kd5 {[%emt 0:00:00]} 55. Kg4 {[%emt 0:00:00]} Rc4 {[%emt 0:00:00]} 56. Kg5 {[%emt 0:00:00]} Ra4 {[%emt 0:00:00]} 57. Bg7 {[%emt 0:00:00]} Ra3 {[%emt 0:00:00]} 58. Kf4 {[%emt 0:00:00]} Ke6 {[%emt 0:00:00]} 59. h4 {[%emt 0:00:00]} Kf7 {[%emt 0:00:00]} 60. Bb2 {[%emt 0:00:00]} Rb3 {[%emt 0:00:05]} 61. Ne5+ {[%emt 0:00:00]} Ke6 {[%emt 0:01:37]} 62. Bd4 {[%emt 0:00:00]} Kd5 {[%emt 0:01:31]} 63. Nf3 {[%emt 0:00:00]} Rb4 {[%emt 0:00:44]} 64. Kg5 {[%emt 0:05:51]} Ke4 {[%emt 0:04:14]} 65. Kg4 {[%emt 0:01:26]} Rb5 {[%emt 0:03:04]} 66. Bg7 {[%emt 0:00:40]} Rf5 {[%emt 0:01:04]} 67. Ne5 {[%emt 0:00:52]} Rf1 {[%emt 0:01:29]} 68. Kg5 {[%emt 0:01:28]} Rg1+ {[%emt 0:04:08]} 69. Kf6 {[%emt 0:00:09]} Kf4 {[%emt 0:00:56]} 70. Bh6+ {[%emt 0:00:14]} Ke4 {[%emt 0:00:54]} 71. Nxg6 {[%emt 0:00:22]} Rb1 {[%emt 0:00:20]} 72. Bf4 {[%emt 0:00:58]} Rb6+ {[%emt 0:00:31]} 73. Kg5 {[%emt 0:00:15]} Rb5+ {[%emt 0:00:15]} 74. Be5 {[%emt 0:00:24]} Rb1 {[%emt 0:00:11]} 75. Kg4 {[%emt 0:00:40]} Kd5 {[%emt 0:00:51]} 76. Kf5 {[%emt 0:00:14]} Rh1 {[%emt 0:01:17]} 77. Nf4+ {[%emt 0:00:05]} Kc6 {[%emt 0:00:23]} 78. h5 {[%emt 0:00:32]} Kd7 {[%emt 0:00:01]} 79. Kf6 {[%emt 0:00:24]} Ke8 {[%emt 0:00:00]} 80. Kg7 {[%emt 0:00:11]} Ke7 {[%emt 0:02:17]} 81. h6 {[%emt 0:00:12]} Rxh6 {[%emt 0:00:48]} 82. Kxh6 {[%emt 0:00:07]} Kd7 {[%emt 0:00:11]} 83. Kg6 {[%emt 0:00:07]} Kc6 {[%emt 0:00:25]} 84. Kf5 {[%emt 0:00:05]} Kd7 {[%emt 0:00:09]} 85. Ke4 {[%emt 0:00:10]} Kc6 {[%emt 0:00:15]} 86. Kd4 {[%emt 0:00:10]} Kd7 {[%emt 0:00:26]} 87. Kd5 {[%emt 0:00:26]} Ke7 {[%emt 0:00:30]} 88. Kc6 {[%emt 0:00:30]} Kd8 {[%emt 0:01:05]} 89. Kd6 {[%emt 0:01:09]} Kc8 {[%emt 0:00:02]} 90. Nd5 {[%emt 0:00:22]} Kb7 {[%emt 0:00:20]} 91. Kd7 {[%emt 0:00:25]} Ka7 {[%emt 0:00:24]} 92. Kc6 {[%emt 0:00:21]} Ka8 {[%emt 0:00:28]} 93. Nb6+ {[%emt 0:00:07]} Ka7 {[%emt 0:00:02]} 94. Bf4 {[%emt 0:00:10]} Ka6 {[%emt 0:00:18]} 95. Bb8 {[%emt 0:00:10]} Ka5 {[%emt 0:00:33]} 96. Nd5 {[%emt 0:00:06]} Ka6 {[%emt 0:00:33]} 97. Nb4+ {[%emt 0:00:05]} Ka5 {[%emt 0:00:29]} 98. Kc5 {[%emt 0:00:05]} Ka4 {[%emt 0:00:27]} 99. Kc4 {[%emt 0:00:16]} Ka5 {[%emt 0:00:14]} 100. Bc7+ {[%emt 0:00:04]} Ka4 {[%emt 0:00:27]} 101. Bd8 {[%emt 0:01:50]} Ka3 {[%emt 0:00:12]} 102. Nd3 {[%emt 0:00:08]} Ka4 {[%emt 0:00:37]} 103. Nb2+ {[%emt 0:00:11]} Ka3 {[%emt 0:00:02]} 104. Kc3 {[%emt 0:00:08]} Ka2 {[%emt 0:00:27]} 105. Nc4 {[%emt 0:00:05]} Kb1 {[%emt 0:00:19]} 106. Bg5 {[%emt 0:00:19]} Ka2 {[%emt 0:00:07]} 107. Kb4 {[%emt 0:00:24]} Kb1 {[%emt 0:00:04]} 108. Kb3 {[%emt 0:00:07]} 1-0

[Event "FIDE WSTC Open 65 2025"]
[Site "Prague"]
[Date "2025.02.21"]
[Round "5.35"]
[White "Karnaukh, Anatolij"]
[Black "Dory, Jeno"]
[Result "1/2-1/2"]
[Annotator "NA"]
[ECO "E21"]
[WhiteElo "1983"]
[BlackElo "2143"]
[PlyCount "63"]
[EventDate "2025.02.17"]
[EventType "team-tourn"]
[EventCountry "CZE"]
[SourceTitle "playchess.com"]
[Source "ChessBase"]
[SourceQuality "1"]
[TimeControl "40/5400+30:1800+30"]

1. d4 {[%emt 0:00:05]} Nf6 {[%emt 0:00:15]} 2. Nf3 {[%emt 0:00:06]} e6 {[%emt 0:00:28]} 3. c4 {[%emt 0:00:51]} b6 {[%emt 0:00:23]} 4. Nc3 {[%emt 0:00:33]} Bb7 {[%emt 0:00:54]} 5. Qc2 {[%emt 0:00:10]} Bb4 {[%emt 0:03:20]} 6. Bd2 {[%emt 0:00:59]} O-O {[%emt 0:01:38]} 7. e3 {[%emt 0:00:37]} Bxc3 {[%emt 0:05:40]} 8. Bxc3 {[%emt 0:00:11]} Ne4 {[%emt 0:00:17]} 9. Bb4 {[%emt 0:00:31]} d6 {[%emt 0:01:15]} 10. Be2 {[%emt 0:02:45]} Nd7 {[%emt 0:01:02]} 11. O-O {[%emt 0:01:59]} c5 {[%emt 0:02:54]} 12. dxc5 {[%emt 0:05:31]} bxc5 {[%emt 0:01:25]} 13. Be1 {[%emt 0:05:41]} Qb6 {[%emt 0:11:48]} 14. Nd2 {[%emt 0:04:00]} f5 {[%emt 0:07:37]} 15. f3 {[%emt 0:00:37]} Nxd2 {[%emt 0:01:53]} 16. Bxd2 {[%emt 0:00:28]} e5 {[%emt 0:10:19]} 17. Bd3 {[%emt 0:06:57]} g6 {[%emt 0:00:24]} 18. f4 {[%emt 0:00:52]} Rae8 {[%emt 0:06:40]} 19. Kh1 {[%emt 0:03:24]} Nf6 {[%emt 0:03:33]} 20. h3 {[%emt 0:05:03]} exf4 {[%emt 0:02:55]} 21. Rxf4 {[%emt 0:05:07]} Ne4 {[%emt 0:02:35]} 22. Bxe4 {[%emt 0:04:32]} Bxe4 {[%emt 0:01:04]} 23. Qc3 {[%emt 0:00:47]} Qb7 {[%emt 0:01:15]} 24. Rf2 {[%emt 0:07:02]} Qg7 {[%emt 0:03:12]} 25. Qxg7+ {[%emt 0:00:36]} Kxg7 {[%emt 0:00:09]} 26. Bc3+ {[%emt 0:00:02]} Kf7 {[%emt 0:00:21]} 27. Kg1 {[%emt 0:00:29]} Ke6 {[%emt 0:00:32]} 28. Rd1 {[%emt 0:00:33]} Rb8 {[%emt 0:02:00]} 29. Rfd2 {[%emt 0:00:28]} Rfd8 {[%emt 0:01:01]} 30. Kf2 {[%emt 0:00:46]} Rd7 {[%emt 0:02:09]} 31. b3 {[%emt 0:00:45]} Rbb7 {[%emt 0:00:44]} 32. h4 {[%emt 0:01:45]} 1/2-1/2

[Event "FIDE WSTC Open 65 2025"]
[Site "Prague"]
[Date "2025.02.21"]
[Round "5.36"]
[White "Glatt, Gabor"]
[Black "Malienko, Alexander"]
[Result "1/2-1/2"]
[Annotator "RC"]
[ECO "C70"]
[WhiteElo "2146"]
[BlackElo "1911"]
[PlyCount "107"]
[EventDate "2025.02.17"]
[EventType "team-tourn"]
[EventCountry "CZE"]
[SourceTitle "playchess.com"]
[Source "ChessBase"]
[SourceQuality "1"]
[TimeControl "40/5400+30:1800+30"]

1. e4 {[%emt 0:00:10]} e5 {[%emt 0:00:07]} 2. Nf3 {[%emt 0:00:08]} Nc6 {[%emt 0:00:06]} 3. Bb5 {[%emt 0:00:12]} a6 {[%emt 0:00:08]} 4. Ba4 {[%emt 0:00:08]} f5 {[%emt 0:00:06]} 5. d3 {[%emt 0:00:46]} fxe4 {[%emt 0:00:28]} 6. dxe4 {[%emt 0:00:10]} Nf6 {[%emt 0:00:11]} 7. O-O {[%emt 0:00:27]} d6 {[%emt 0:02:45]} 8. Nc3 {[%emt 0:01:22]} Bg4 {[%emt 0:03:12]} 9. h3 {[%emt 0:01:40]} Bh5 {[%emt 0:01:04]} 10. Qd3 {[%emt 0:03:46]} Bxf3 {[%emt 0:07:03]} 11. Qxf3 {[%emt 0:00:55]} Be7 {[%emt 0:00:18]} 12. Qe2 {[%emt 0:05:13]} Rb8 {[%emt 0:09:08]} 13. Bxc6+ {[%emt 0:02:00]} bxc6 {[%emt 0:00:28]} 14. Qxa6 {[%emt 0:00:09]} Qd7 {[%emt 0:00:43]} 15. Qe2 {[%emt 0:02:24]} O-O {[%emt 0:00:17]} 16. b3 {[%emt 0:01:12]} Kh8 {[%emt 0:05:41]} 17. Bg5 {[%emt 0:08:18]} Ng8 {[%emt 0:02:33]} 18. Bd2 {[%emt 0:04:08]} Bf6 {[%emt 0:03:25]} 19. Rad1 {[%emt 0:01:31]} Ne7 {[%emt 0:00:43]} 20. Qg4 {[%emt 0:06:33]} Qd8 {[%emt 0:01:52]} 21. Ne2 {[%emt 0:02:22]} Ng6 {[%emt 0:01:32]} 22. Ng3 {[%emt 0:04:55]} Qe8 {[%emt 0:05:57]} 23. Nh5 {[%emt 0:08:24]} Rf7 {[%emt 0:01:15]} 24. Bc3 {[%emt 0:08:46]} Qe7 {[%emt 0:05:51]} 25. Ng3 {[%emt 0:03:17]} Nf4 {[%emt 0:02:27]} 26. Nf5 {[%emt 0:01:19]} Qe8 {[%emt 0:03:53]} 27. g3 {[%emt 0:03:20]} Ne6 {[%emt 0:08:29]} 28. Rde1 {[%emt 0:01:03]} g6 {[%emt 0:03:20]} 29. Ne3 {[%emt 0:00:27]} Ng5 {[%emt 0:00:44]} 30. Nc4 {[%emt 0:13:01]} h5 {[%emt 0:03:31]} 31. Qe2 {[%emt 0:00:14]} Nxh3+ {[%emt 0:00:28]} 32. Kg2 {[%emt 0:00:02]} Ng5 {[%emt 0:00:41]} 33. f4 {[%emt 0:03:34]} exf4 {[%emt 0:01:12]} 34. Bxf6+ {[%emt 0:00:04]} Rxf6 {[%emt 0:00:10]} 35. gxf4 {[%emt 0:00:22]} Ne6 {[%emt 0:03:31]} 36. Qd2 {[%emt 0:06:13]} Qf7 {[%emt 0:14:07]} 37. f5 {[%emt 0:02:11]} gxf5 {[%emt 0:00:55]} 38. Rxf5 {[%emt 0:01:03]} Qg6+ {[%emt 0:02:23]} 39. Kh1 {[%emt 0:00:24]} Rg8 {[%emt 0:04:02]} 40. Qf2 {[%emt 0:05:31]} Rxf5 {[%emt 0:03:02]} 41. exf5 {[%emt 0:30:15]} Qg4 {[%emt 0:30:52]} 42. Re3 {[%emt 0:00:00]} Nf4 {[%emt 0:00:00]} 43. f6 {[%emt 0:00:00]} Qd1+ {[%emt 0:00:00]} 44. Kh2 {[%emt 0:00:00]} Rg2+ {[%emt 0:00:00]} 45. Qxg2 {[%emt 0:00:00]} Nxg2 {[%emt 0:00:00]} 46. Re8+ {[%emt 0:00:00]} Kh7 {[%emt 0:00:00]} 47. f7 {[%emt 0:00:00]} Qxc2 {[%emt 0:00:00]} 48. Rh8+ {[%emt 0:00:00]} Kxh8 {[%emt 0:00:00]} 49. f8=Q+ {[%emt 0:00:00]} Kh7 {[%emt 0:00:00]} 50. Qf7+ {[%emt 0:00:00]} Kh6 {[%emt 0:00:00]} 51. Qf8+ {[%emt 0:00:00]} Kh7 {[%emt 0:00:00]} 52. Qf7+ {[%emt 0:00:28]} Kh6 {[%emt 0:00:00]} 53. Qf6+ {[%emt 0:01:26]} Kh7 {[%emt 0:00:00]} 54. Qf7+ {[%emt 0:00:26]} 1/2-1/2

[Event "FIDE WSTC Open 65 2025"]
[Site "Prague"]
[Date "2025.02.21"]
[Round "5.37"]
[White "Wirthensohn, Heinz"]
[Black "Heinig, Wolfram"]
[Result "1-0"]
[Annotator "RC"]
[ECO "B13"]
[WhiteElo "2273"]
[BlackElo "2204"]
[PlyCount "53"]
[EventDate "2025.02.17"]
[EventType "team-tourn"]
[EventCountry "CZE"]
[SourceTitle "playchess.com"]
[Source "ChessBase"]
[SourceQuality "1"]
[TimeControl "40/5400+30:1800+30"]

1. Nf3 {[%emt 0:00:01]} c5 {[%emt 0:00:43]} 2. c4 {[%emt 0:00:25]} Nc6 {[%emt 0:00:33]} 3. Nc3 {[%emt 0:00:28]} g6 {[%emt 0:01:17]} 4. e3 {[%emt 0:00:25]} Nf6 {[%emt 0:02:02]} 5. d4 {[%emt 0:00:20]} cxd4 {[%emt 0:00:35]} 6. exd4 {[%emt 0:00:09]} d5 {[%emt 0:00:30]} 7. Bg5 {[%emt 0:01:01]} Be6 {[%emt 0:02:11]} 8. Bxf6 {[%emt 0:01:40]} exf6 {[%emt 0:00:08]} 9. c5 {[%emt 0:04:29]} Bg7 {[%emt 0:00:46]} 10. Bb5 {[%emt 0:01:14]} O-O {[%emt 0:01:05]} 11. h3 {[%emt 0:01:21]} Re8 {[%emt 0:37:19]} 12. O-O {[%emt 0:00:31]} f5 {[%emt 0:01:39]} 13. Re1 {[%emt 0:05:27]} Re7 {[%emt 0:06:54]} 14. Bxc6 {[%emt 0:03:01]} bxc6 {[%emt 0:00:02]} 15. b4 {[%emt 0:01:30]} Rb7 {[%emt 0:02:01]} 16. Rb1 {[%emt 0:04:00]} Qb8 {[%emt 0:07:35]} 17. Qa4 {[%emt 0:02:22]} a5 {[%emt 0:08:39]} 18. bxa5 {[%emt 0:06:12]} Rxb1 {[%emt 0:02:31]} 19. Rxb1 {[%emt 0:00:12]} Qc7 {[%emt 0:02:58]} 20. a6 {[%emt 0:03:29]} Bf6 {[%emt 0:01:43]} 21. Rb7 {[%emt 0:03:12]} Qf4 {[%emt 0:16:00]} 22. Ne2 {[%emt 0:02:56]} Qe4 {[%emt 0:00:12]} 23. Ng3 {[%emt 0:02:31]} Qd3 {[%emt 0:00:13]} 24. a7 {[%emt 0:00:19]} Kg7 {[%emt 0:00:20]} 25. Rb8 {[%emt 0:01:08]} Rxa7 {[%emt 0:00:27]} 26. Qxa7 {[%emt 0:00:10]} f4 {[%emt 0:00:05]} 27. Nf1 {[%emt 0:00:51]} 1-0